[Event "Early-Titled-Tuesday-Blitz-April-02-2024"]
[Site "Chess.com"]
[Date "2024.04.02"]
[Round "6"]
[White "JCVanDamme10"]
[Black "AlphaGoosee"]
[Result "0-1"]
[WhiteElo "2350"]
[BlackElo "2527"]
[TimeControl "180+1"]
[EndTime "9:05:39 PDT"]
[Termination "AlphaGoosee won by resignation"]

1. e4 {[%clk 0:03:00.9]} 1... c5 {[%clk 0:03:00.2]} 2. Nf3 {[%clk 0:03:00.9]}
2... d6 {[%clk 0:03:00.6]} 3. d4 {[%clk 0:03:01.4]} 3... cxd4 {[%clk 0:03:01.5]}
4. Nxd4 {[%clk 0:03:01.8]} 4... Nf6 {[%clk 0:03:02.2]} 5. Nc3 {[%clk 0:03:02.1]}
5... a6 {[%clk 0:03:02.9]} 6. h3 {[%clk 0:03:02.3]} 6... e5 {[%clk 0:03:03.2]}
7. Nde2 {[%clk 0:03:01.7]} 7... h5 {[%clk 0:03:03.6]} 8. Bg5 {[%clk 0:03:00.2]}
8... Be6 {[%clk 0:03:04.2]} 9. Qd2 {[%clk 0:02:55.9]} 9... Be7 {[%clk
0:03:01.8]} 10. O-O-O {[%clk 0:02:52.4]} 10... Nbd7 {[%clk 0:03:02.3]} 11. Kb1
{[%clk 0:02:51.8]} 11... b5 {[%clk 0:03:02.3]} 12. f3 {[%clk 0:02:50.2]} 12...
Nb6 {[%clk 0:02:53]} 13. Bxf6 {[%clk 0:02:32.3]} 13... gxf6 {[%clk 0:02:43.4]}
14. Nd5 {[%clk 0:02:25.8]} 14... Nxd5 {[%clk 0:02:40.6]} 15. exd5 {[%clk
0:02:25.9]} 15... Bd7 {[%clk 0:02:41.5]} 16. Nc3 {[%clk 0:02:17.1]} 16... f5
{[%clk 0:02:39.8]} 17. Bd3 {[%clk 0:02:17.4]} 17... h4 {[%clk 0:02:37.5]} 18.
Rde1 {[%clk 0:02:09.5]} 18... b4 {[%clk 0:02:32.3]} 19. Nd1 {[%clk 0:02:09.4]}
19... a5 {[%clk 0:02:32.8]} 20. Ne3 {[%clk 0:02:03.5]} 20... Qc8 {[%clk
0:02:28.8]} 21. Nc4 {[%clk 0:02:01.2]} 21... Qc7 {[%clk 0:02:23.6]} 22. Ne3
{[%clk 0:01:58]} 22... Bg5 {[%clk 0:02:20.9]} 23. Qe2 {[%clk 0:01:51.8]} 23...
Bxe3 {[%clk 0:01:54.2]} 24. Qxe3 {[%clk 0:01:51.5]} 24... Kf8 {[%clk 0:01:48.6]}
25. Qg5 {[%clk 0:01:50.6]} 25... Qd8 {[%clk 0:01:48.4]} 26. Qd2 {[%clk
0:01:39.1]} 26... f4 {[%clk 0:01:47.1]} 27. c3 {[%clk 0:01:30.1]} 27... bxc3
{[%clk 0:01:46.2]} 28. Qxc3 {[%clk 0:01:29.9]} 28... Rg8 {[%clk 0:01:46.8]} 29.
Re2 {[%clk 0:01:27.9]} 29... Rb8 {[%clk 0:01:44.9]} 30. Rc1 {[%clk 0:01:25.2]}
30... Qb6 {[%clk 0:01:41]} 31. Ka1 {[%clk 0:01:22.5]} 31... Ke7 {[%clk 0:01:38]}
32. Qa3 {[%clk 0:00:58.9]} 32... Qb4 {[%clk 0:01:26.9]} 33. Qxb4 {[%clk
0:00:57]} 33... Rxb4 {[%clk 0:01:27.5]} 34. Rc4 {[%clk 0:00:53.2]} 34... Rc8
{[%clk 0:01:20.5]} 35. a3 {[%clk 0:00:43.1]} 35... Rbxc4 {[%clk 0:01:20.3]} 36.
Bxc4 {[%clk 0:00:41]} 36... Rxc4 {[%clk 0:01:21.2]} 37. Ka2 {[%clk 0:00:35.9]}
37... a4 {[%clk 0:01:21]} 38. Kb1 {[%clk 0:00:33.2]} 38... Rd4 {[%clk
0:01:20.9]} 39. Kc1 {[%clk 0:00:32.7]} 39... Rxd5 {[%clk 0:01:21.3]} 40. Re4
{[%clk 0:00:32.5]} 40... f5 {[%clk 0:01:19.3]} 41. Rb4 {[%clk 0:00:31.7]} 41...
Rb5 {[%clk 0:01:18.2]} 42. Rxb5 {[%clk 0:00:27.2]} 42... Bxb5 {[%clk 0:01:19.1]}
43. Kd2 {[%clk 0:00:23]} 43... d5 {[%clk 0:01:20]} 0-1

[Event "Early-Titled-Tuesday-Blitz-April-02-2024"]
[Site "Chess.com"]
[Date "2024.04.02"]
[Round "6"]
[White "toninhojit"]
[Black "slidingknight2775"]
[Result "0-1"]
[WhiteElo "2491"]
[BlackElo "2596"]
[TimeControl "180+1"]
[EndTime "9:05:41 PDT"]
[Termination "slidingknight2775 won by resignation"]

1. d4 {[%clk 0:03:00.9]} 1... Nf6 {[%clk 0:03:00]} 2. c4 {[%clk 0:03:01.6]} 2...
g6 {[%clk 0:03:00.2]} 3. Nc3 {[%clk 0:03:02.1]} 3... Bg7 {[%clk 0:03:00.9]} 4.
e4 {[%clk 0:03:02.5]} 4... d6 {[%clk 0:03:01.6]} 5. Be2 {[%clk 0:03:02.9]} 5...
c5 {[%clk 0:03:01.7]} 6. d5 {[%clk 0:03:02.4]} 6... O-O {[%clk 0:03:00.3]} 7.
Bg5 {[%clk 0:03:02.4]} 7... e6 {[%clk 0:03:00.3]} 8. Qd2 {[%clk 0:03:02.1]} 8...
exd5 {[%clk 0:03:00.3]} 9. exd5 {[%clk 0:03:03]} 9... Re8 {[%clk 0:02:59.7]} 10.
Nf3 {[%clk 0:03:03.4]} 10... Bg4 {[%clk 0:02:57.3]} 11. O-O {[%clk 0:03:03.1]}
11... Bxf3 {[%clk 0:02:57.7]} 12. Bxf3 {[%clk 0:03:03]} 12... a6 {[%clk
0:02:56.8]} 13. Rae1 {[%clk 0:02:59.1]} 13... Nbd7 {[%clk 0:02:56.9]} 14. Rxe8+
{[%clk 0:02:58.6]} 14... Qxe8 {[%clk 0:02:57.8]} 15. Re1 {[%clk 0:02:59.2]}
15... Qf8 {[%clk 0:02:58.1]} 16. Bf4 {[%clk 0:02:59.7]} 16... Re8 {[%clk
0:02:57.7]} 17. Rxe8 {[%clk 0:02:59.5]} 17... Nxe8 {[%clk 0:02:58.6]} 18. Bg4
{[%clk 0:02:55.8]} 18... Ne5 {[%clk 0:02:55.4]} 19. Be2 {[%clk 0:02:44.1]} 19...
h5 {[%clk 0:02:49.9]} 20. h3 {[%clk 0:02:44]} 20... Kh7 {[%clk 0:02:49.7]} 21.
a3 {[%clk 0:02:40.9]} 21... Bh6 {[%clk 0:02:46.8]} 22. b4 {[%clk 0:02:38.4]}
22... Bxf4 {[%clk 0:02:28.6]} 23. Qxf4 {[%clk 0:02:39.3]} 23... Qe7 {[%clk
0:02:29.2]} 24. Kf1 {[%clk 0:02:23.6]} 24... Qf6 {[%clk 0:02:17.9]} 25. Qxf6
{[%clk 0:02:20.3]} 25... Nxf6 {[%clk 0:02:18.8]} 26. bxc5 {[%clk 0:02:20.9]}
26... dxc5 {[%clk 0:02:19.7]} 27. Na4 {[%clk 0:02:15.6]} 27... Ned7 {[%clk
0:02:20.1]} 28. g4 {[%clk 0:02:08.8]} 28... hxg4 {[%clk 0:02:17.3]} 29. hxg4
{[%clk 0:02:09.7]} 29... Ne8 {[%clk 0:02:10.3]} 30. Ke1 {[%clk 0:02:01.7]} 30...
Nd6 {[%clk 0:02:05.4]} 31. f4 {[%clk 0:01:56.7]} 31... f6 {[%clk 0:02:00.2]} 32.
Bd3 {[%clk 0:01:53.5]} 32... Kg7 {[%clk 0:01:59.1]} 33. Kd2 {[%clk 0:01:51.3]}
33... g5 {[%clk 0:01:56.7]} 34. Ke3 {[%clk 0:01:48.2]} 34... gxf4+ {[%clk
0:01:43.2]} 35. Kxf4 {[%clk 0:01:49.1]} 35... b6 {[%clk 0:01:43.7]} 36. Bf5
{[%clk 0:01:45.5]} 36... Ne5 {[%clk 0:01:29.3]} 37. Nxb6 {[%clk 0:01:44.7]}
37... Nexc4 {[%clk 0:01:29.8]} 38. Nxc4 {[%clk 0:01:35.4]} 38... Nxc4 {[%clk
0:01:30.7]} 39. Bd3 {[%clk 0:01:35.9]} 39... Nxa3 {[%clk 0:01:26]} 40. Bxa6
{[%clk 0:01:35]} 40... Kf7 {[%clk 0:01:25]} 41. Kf5 {[%clk 0:01:29.5]} 41... c4
{[%clk 0:01:19.8]} 42. d6 {[%clk 0:01:25.8]} 42... c3 {[%clk 0:01:12.3]} 43. Bd3
{[%clk 0:01:16.2]} 43... c2 {[%clk 0:01:05.4]} 44. Bxc2 {[%clk 0:01:15.9]} 44...
Nxc2 {[%clk 0:01:06.3]} 45. d7 {[%clk 0:01:16.1]} 45... Nd4+ {[%clk 0:01:00]}
46. Ke4 {[%clk 0:01:16.3]} 46... Ne6 {[%clk 0:00:59.4]} 47. Kf5 {[%clk
0:01:07.2]} 47... Ng7+ {[%clk 0:00:53.4]} 48. Kf4 {[%clk 0:01:03.6]} 48... Ke7
{[%clk 0:00:50.4]} 0-1

[Event "Early-Titled-Tuesday-Blitz-April-02-2024"]
[Site "Chess.com"]
[Date "2024.04.02"]
[Round "6"]
[White "Witik"]
[Black "BashiqChess"]
[Result "1-0"]
[WhiteElo "2781"]
[BlackElo "2488"]
[TimeControl "180+1"]
[EndTime "9:05:43 PDT"]
[Termination "Witik won on time"]

1. d4 {[%clk 0:03:00.1]} 1... d5 {[%clk 0:02:54.1]} 2. c4 {[%clk 0:02:59.9]}
2... e6 {[%clk 0:02:54]} 3. Nf3 {[%clk 0:03:00.2]} 3... a6 {[%clk 0:02:54.2]} 4.
Nbd2 {[%clk 0:02:56.1]} 4... Nf6 {[%clk 0:02:51.8]} 5. g3 {[%clk 0:02:53.6]}
5... dxc4 {[%clk 0:02:49.9]} 6. Nxc4 {[%clk 0:02:51.6]} 6... b5 {[%clk
0:02:49.9]} 7. Nce5 {[%clk 0:02:48.8]} 7... Bb7 {[%clk 0:02:50.2]} 8. Bg2 {[%clk
0:02:49.2]} 8... c5 {[%clk 0:02:50.1]} 9. O-O {[%clk 0:02:48.1]} 9... Nbd7
{[%clk 0:02:46]} 10. Nxf7 {[%clk 0:02:42]} 10... Kxf7 {[%clk 0:02:20.3]} 11.
Ng5+ {[%clk 0:02:41.8]} 11... Ke7 {[%clk 0:02:09.5]} 12. Bxb7 {[%clk 0:02:42.2]}
12... Ra7 {[%clk 0:02:10.1]} 13. Bg2 {[%clk 0:02:35.6]} 13... h6 {[%clk
0:02:07.5]} 14. Nf3 {[%clk 0:02:31.6]} 14... Kf7 {[%clk 0:01:54.1]} 15. e4
{[%clk 0:02:04.1]} 15... cxd4 {[%clk 0:01:47.8]} 16. e5 {[%clk 0:01:59.3]} 16...
Nd5 {[%clk 0:01:17.1]} 17. Qxd4 {[%clk 0:01:58.7]} 17... Bc5 {[%clk 0:01:12.7]}
18. Qg4 {[%clk 0:01:49.7]} 18... N7b6 {[%clk 0:00:44.2]} 19. h4 {[%clk
0:01:44.8]} 19... Qe7 {[%clk 0:00:21.3]} 20. h5 {[%clk 0:01:43.8]} 20... Ke8
{[%clk 0:00:19]} 21. Nh4 {[%clk 0:01:37.2]} 21... Kd8 {[%clk 0:00:19.1]} 22. Ng6
{[%clk 0:01:37.2]} 22... Qe8 {[%clk 0:00:15.3]} 23. Bd2 {[%clk 0:01:26.4]} 23...
Rg8 {[%clk 0:00:12.8]} 24. Rac1 {[%clk 0:01:23.5]} 24... Nc4 {[%clk 0:00:09.4]}
25. Rfd1 {[%clk 0:01:20]} 25... Rf7 {[%clk 0:00:04.9]} 26. Be1 {[%clk
0:01:19.6]} 26... Qc6 {[%clk 0:00:03.5]} 27. b3 {[%clk 0:01:09.5]} 27... Qb6
{[%clk 0:00:03.6]} 28. bxc4 {[%clk 0:01:05.7]} 28... Bxf2+ {[%clk 0:00:04]} 29.
Kh2 {[%clk 0:01:06.4]} 29... Bxe1 {[%clk 0:00:04.1]} 30. cxd5 {[%clk 0:01:06.3]}
30... exd5 {[%clk 0:00:02.3]} 31. Rxd5+ {[%clk 0:01:05.4]} 31... Ke8 {[%clk
0:00:02.3]} 32. Rc8+ {[%clk 0:01:05.7]} 1-0

[Event "Early-Titled-Tuesday-Blitz-April-02-2024"]
[Site "Chess.com"]
[Date "2024.04.02"]
[Round "6"]
[White "Vasily_IM"]
[Black "AlainBruxelles"]
[Result "1-0"]
[WhiteElo "2560"]
[BlackElo "2315"]
[TimeControl "180+1"]
[EndTime "9:05:44 PDT"]
[Termination "Vasily_IM won by resignation"]

1. d4 {[%clk 0:02:59.2]} 1... d5 {[%clk 0:02:55.1]} 2. c4 {[%clk 0:02:58.5]}
2... dxc4 {[%clk 0:02:55.2]} 3. e3 {[%clk 0:02:58.1]} 3... Nf6 {[%clk
0:02:55.2]} 4. Bxc4 {[%clk 0:02:57.6]} 4... e6 {[%clk 0:02:55.6]} 5. Nf3 {[%clk
0:02:57.3]} 5... a6 {[%clk 0:02:56.1]} 6. O-O {[%clk 0:02:56.9]} 6... c5 {[%clk
0:02:56.6]} 7. b3 {[%clk 0:02:55.9]} 7... cxd4 {[%clk 0:02:56.5]} 8. Nxd4 {[%clk
0:02:55.3]} 8... Bd6 {[%clk 0:02:55.2]} 9. Bb2 {[%clk 0:02:54.8]} 9... O-O
{[%clk 0:02:54.5]} 10. Nd2 {[%clk 0:02:52.5]} 10... b5 {[%clk 0:02:50]} 11. Be2
{[%clk 0:02:52]} 11... Bb7 {[%clk 0:02:50]} 12. a4 {[%clk 0:02:50.7]} 12... bxa4
{[%clk 0:02:48.1]} 13. Rxa4 {[%clk 0:02:49.8]} 13... Nbd7 {[%clk 0:02:43.6]} 14.
Bf3 {[%clk 0:02:48.2]} 14... Bxf3 {[%clk 0:02:42]} 15. Qxf3 {[%clk 0:02:44.9]}
15... Nc5 {[%clk 0:02:37.1]} 16. Ra2 {[%clk 0:02:34.2]} 16... Qb8 {[%clk
0:02:31.2]} 17. h3 {[%clk 0:02:30.6]} 17... Nd3 {[%clk 0:02:03.9]} 18. Nc6
{[%clk 0:02:26.9]} 18... Qc7 {[%clk 0:01:57.3]} 19. Bxf6 {[%clk 0:02:25.2]}
19... gxf6 {[%clk 0:01:57.8]} 20. Rc2 {[%clk 0:02:06.7]} 20... Ne5 {[%clk
0:01:35.4]} 21. Qxf6 {[%clk 0:01:48.5]} 21... Nxc6 {[%clk 0:01:33.8]} 22. Rc4
{[%clk 0:01:47.4]} 22... Ne5 {[%clk 0:01:22.2]} 23. Rxc7 {[%clk 0:01:40.6]}
23... Bxc7 {[%clk 0:01:22.4]} 24. Rc1 {[%clk 0:01:35.2]} 24... Bb8 {[%clk
0:01:16.3]} 25. Ne4 {[%clk 0:01:24]} 25... Ng6 {[%clk 0:01:13.1]} 26. h4 {[%clk
0:01:15.3]} 26... Be5 {[%clk 0:01:07.8]} 27. Qg5 {[%clk 0:01:13.1]} 27... Rac8
{[%clk 0:00:56.2]} 28. Rxc8 {[%clk 0:01:10.8]} 28... Rxc8 {[%clk 0:00:54.6]} 29.
f4 {[%clk 0:01:10.9]} 29... Rc1+ {[%clk 0:00:45]} 30. Kh2 {[%clk 0:01:08.9]}
30... Bg7 {[%clk 0:00:40]} 31. h5 {[%clk 0:01:07.8]} 31... f6 {[%clk 0:00:20.6]}
32. Nxf6+ {[%clk 0:01:05.9]} 32... Bxf6 {[%clk 0:00:20.9]} 33. Qxf6 {[%clk
0:01:06.3]} 33... Nf8 {[%clk 0:00:21.6]} 34. h6 {[%clk 0:00:55.8]} 1-0

[Event "Early-Titled-Tuesday-Blitz-April-02-2024"]
[Site "Chess.com"]
[Date "2024.04.02"]
[Round "6"]
[White "FMStan15"]
[Black "DefenceWinsChampionships"]
[Result "1-0"]
[WhiteElo "2125"]
[BlackElo "2294"]
[TimeControl "180+1"]
[EndTime "9:05:47 PDT"]
[Termination "FMStan15 won on time"]

1. e4 {[%clk 0:02:40.3]} 1... c5 {[%clk 0:02:59.4]} 2. c3 {[%clk 0:02:39.9]}
2... Nf6 {[%clk 0:02:56.5]} 3. e5 {[%clk 0:02:39.7]} 3... Nd5 {[%clk 0:02:56.1]}
4. d4 {[%clk 0:02:40.6]} 4... cxd4 {[%clk 0:02:55.2]} 5. Nf3 {[%clk 0:02:41.5]}
5... e6 {[%clk 0:02:55.3]} 6. cxd4 {[%clk 0:02:41]} 6... d6 {[%clk 0:02:53.9]}
7. a3 {[%clk 0:02:41.1]} 7... Nc6 {[%clk 0:02:52.4]} 8. Bd3 {[%clk 0:02:41]}
8... Qc7 {[%clk 0:02:37.7]} 9. O-O {[%clk 0:02:38]} 9... Bd7 {[%clk 0:02:31.4]}
10. Qe2 {[%clk 0:02:35.7]} 10... h6 {[%clk 0:02:28.5]} 11. Bd2 {[%clk
0:02:35.8]} 11... Rc8 {[%clk 0:02:26]} 12. Nc3 {[%clk 0:02:35.8]} 12... Nxc3
{[%clk 0:02:24.4]} 13. Bxc3 {[%clk 0:02:35.9]} 13... d5 {[%clk 0:02:03.9]} 14.
Rac1 {[%clk 0:02:34.6]} 14... Be7 {[%clk 0:02:03.1]} 15. b4 {[%clk 0:02:33.3]}
15... a6 {[%clk 0:02:02]} 16. a4 {[%clk 0:02:29.8]} 16... Qb8 {[%clk 0:02:00.8]}
17. b5 {[%clk 0:02:29.5]} 17... axb5 {[%clk 0:02:00.5]} 18. axb5 {[%clk
0:02:29.1]} 18... Na7 {[%clk 0:01:51.2]} 19. Nd2 {[%clk 0:02:27.1]} 19... O-O
{[%clk 0:01:42.3]} 20. f4 {[%clk 0:02:25.6]} 20... g6 {[%clk 0:01:42.1]} 21. g4
{[%clk 0:02:23.5]} 21... Kh7 {[%clk 0:00:31.1]} 22. f5 {[%clk 0:02:20.9]} 22...
gxf5 {[%clk 0:00:28.7]} 23. gxf5 {[%clk 0:02:20.9]} 23... Rg8+ {[%clk 0:00:29]}
24. Kh1 {[%clk 0:02:20]} 24... exf5 {[%clk 0:00:29.4]} 25. Bxf5+ {[%clk
0:02:16.4]} 25... Bxf5 {[%clk 0:00:29.5]} 26. Rxf5 {[%clk 0:02:14.9]} 26... Rg7
{[%clk 0:00:29]} 27. Qd3 {[%clk 0:01:46.4]} 27... Kh8 {[%clk 0:00:28.1]} 28. Qh3
{[%clk 0:01:44.3]} 28... Bg5 {[%clk 0:00:26.4]} 29. Rg1 {[%clk 0:01:37.2]} 29...
Kg8 {[%clk 0:00:11.9]} 30. Bb4 {[%clk 0:00:54.7]} 30... Qc7 {[%clk 0:00:07.9]}
31. Nf3 {[%clk 0:00:51.5]} 1-0

[Event "Early-Titled-Tuesday-Blitz-April-02-2024"]
[Site "Chess.com"]
[Date "2024.04.02"]
[Round "6"]
[White "NelsonLinda"]
[Black "GoltsevDmitry2000"]
[Result "0-1"]
[WhiteElo "2643"]
[BlackElo "2822"]
[TimeControl "180+1"]
[EndTime "9:05:50 PDT"]
[Termination "GoltsevDmitry2000 won on time"]

1. Nf3 {[%clk 0:02:53.4]} 1... d5 {[%clk 0:02:58.3]} 2. g3 {[%clk 0:02:53.3]}
2... Nf6 {[%clk 0:02:56.8]} 3. Bg2 {[%clk 0:02:53.9]} 3... c5 {[%clk 0:02:56.5]}
4. O-O {[%clk 0:02:54.3]} 4... Nc6 {[%clk 0:02:56.1]} 5. d3 {[%clk 0:02:55]}
5... e5 {[%clk 0:02:55.6]} 6. Nbd2 {[%clk 0:02:53.6]} 6... e4 {[%clk 0:02:55.3]}
7. dxe4 {[%clk 0:02:23.6]} 7... dxe4 {[%clk 0:02:56.2]} 8. Ng5 {[%clk
0:02:22.3]} 8... e3 {[%clk 0:02:52.3]} 9. Nde4 {[%clk 0:02:13.4]} 9... exf2+
{[%clk 0:02:45.8]} 10. Nxf2 {[%clk 0:02:12.3]} 10... Qxd1 {[%clk 0:02:43.9]} 11.
Rxd1 {[%clk 0:02:13.1]} 11... Bd7 {[%clk 0:02:40.8]} 12. c3 {[%clk 0:02:09.2]}
12... h6 {[%clk 0:02:40.4]} 13. Nge4 {[%clk 0:02:08.3]} 13... Nxe4 {[%clk
0:02:40.6]} 14. Nxe4 {[%clk 0:02:09.2]} 14... O-O-O {[%clk 0:02:39.2]} 15. Bf4
{[%clk 0:02:04]} 15... f5 {[%clk 0:02:23.9]} 16. Nd6+ {[%clk 0:02:03.3]} 16...
Bxd6 {[%clk 0:02:07.4]} 17. Bxd6 {[%clk 0:02:04.2]} 17... b6 {[%clk 0:01:59.6]}
18. Rd2 {[%clk 0:01:23.8]} 18... Rhe8 {[%clk 0:01:58.7]} 19. Rad1 {[%clk
0:01:21.4]} 19... Na5 {[%clk 0:01:46.4]} 20. b3 {[%clk 0:01:21.5]} 20... Bc6
{[%clk 0:01:36]} 21. Bxc6 {[%clk 0:01:09.4]} 21... Nxc6 {[%clk 0:01:36.9]} 22.
Kf2 {[%clk 0:01:10.1]} 22... Re4 {[%clk 0:01:29]} 23. Rd5 {[%clk 0:00:48.7]}
23... g6 {[%clk 0:01:25.1]} 24. Bf4 {[%clk 0:00:48.4]} 24... Rxd5 {[%clk
0:01:23.1]} 25. Rxd5 {[%clk 0:00:49.3]} 25... g5 {[%clk 0:01:21]} 26. Bd6 {[%clk
0:00:26.2]} 26... Re6 {[%clk 0:01:20.6]} 27. h3 {[%clk 0:00:07.8]} 27... a5
{[%clk 0:01:17.6]} 28. Bf8 {[%clk 0:00:03.2]} 28... Ne5 {[%clk 0:01:16.5]} 29.
Bg7 {[%clk 0:00:03.3]} 29... Nf7 {[%clk 0:01:08.1]} 30. Rxf5 {[%clk 0:00:03.8]}
30... Nd6 {[%clk 0:01:06.2]} 31. Rf8+ {[%clk 0:00:04.1]} 31... Kd7 {[%clk
0:01:06.4]} 32. Rh8 {[%clk 0:00:02.1]} 32... Nf5 {[%clk 0:01:02.9]} 0-1

[Event "Early-Titled-Tuesday-Blitz-April-02-2024"]
[Site "Chess.com"]
[Date "2024.04.02"]
[Round "6"]
[White "InitiatingASC"]
[Black "PawnEatingZombie"]
[Result "1-0"]
[WhiteElo "2345"]
[BlackElo "2185"]
[TimeControl "180+1"]
[EndTime "9:05:50 PDT"]
[Termination "InitiatingASC won on time"]

1. e4 {[%clk 0:03:00.9]} 1... c5 {[%clk 0:02:57]} 2. Nf3 {[%clk 0:03:00.4]} 2...
Nc6 {[%clk 0:02:57.6]} 3. Bb5 {[%clk 0:03:00.2]} 3... Nf6 {[%clk 0:02:56.6]} 4.
Bxc6 {[%clk 0:02:56.5]} 4... bxc6 {[%clk 0:02:49.3]} 5. d3 {[%clk 0:02:56.2]}
5... d6 {[%clk 0:02:37.8]} 6. O-O {[%clk 0:02:55.6]} 6... e5 {[%clk 0:02:37.6]}
7. h3 {[%clk 0:02:46.3]} 7... Be7 {[%clk 0:02:37.5]} 8. Nbd2 {[%clk 0:02:41.2]}
8... O-O {[%clk 0:02:37.5]} 9. Nc4 {[%clk 0:02:41.5]} 9... Re8 {[%clk
0:02:36.5]} 10. Bg5 {[%clk 0:02:35.9]} 10... h6 {[%clk 0:02:35.8]} 11. Bd2
{[%clk 0:02:29.9]} 11... Bf8 {[%clk 0:02:33.4]} 12. Ba5 {[%clk 0:02:21.2]} 12...
Qe7 {[%clk 0:02:24.8]} 13. Qe2 {[%clk 0:02:16.4]} 13... g6 {[%clk 0:02:15.3]}
14. Bc3 {[%clk 0:02:10.5]} 14... Bg7 {[%clk 0:02:13.8]} 15. a3 {[%clk
0:02:07.8]} 15... Nh5 {[%clk 0:02:13.5]} 16. b4 {[%clk 0:02:05.3]} 16... Nf4
{[%clk 0:02:11.7]} 17. Qe3 {[%clk 0:02:05.6]} 17... cxb4 {[%clk 0:02:10.5]} 18.
axb4 {[%clk 0:02:04.5]} 18... f6 {[%clk 0:01:32.1]} 19. Ra3 {[%clk 0:01:52.4]}
19... d5 {[%clk 0:01:32]} 20. exd5 {[%clk 0:01:40.1]} 20... cxd5 {[%clk
0:01:31.7]} 21. Nb6 {[%clk 0:01:40.2]} 21... Bxh3 {[%clk 0:01:16.1]} 22. Nxa8
{[%clk 0:01:28.6]} 22... Bxg2 {[%clk 0:01:11.6]} 23. Rxa7 {[%clk 0:01:27]} 23...
Qe6 {[%clk 0:01:09.1]} 24. Rfa1 {[%clk 0:01:12.1]} 24... Qg4 {[%clk 0:00:56.1]}
25. Nxe5 {[%clk 0:00:38]} 25... Nh3+ {[%clk 0:00:42]} 26. Kh2 {[%clk 0:00:36.9]}
26... fxe5 {[%clk 0:00:35.8]} 27. Qg3 {[%clk 0:00:37]} 27... Qxg3+ {[%clk
0:00:06.8]} 28. fxg3 {[%clk 0:00:37.9]} 1-0

[Event "Early-Titled-Tuesday-Blitz-April-02-2024"]
[Site "Chess.com"]
[Date "2024.04.02"]
[Round "6"]
[White "viktorgen2021"]
[Black "Statham_01"]
[Result "1-0"]
[WhiteElo "2510"]
[BlackElo "2615"]
[TimeControl "180+1"]
[EndTime "9:05:54 PDT"]
[Termination "viktorgen2021 won on time"]

1. d4 {[%clk 0:03:00.9]} 1... Nf6 {[%clk 0:02:55.8]} 2. Nf3 {[%clk 0:03:00.9]}
2... d5 {[%clk 0:02:52.7]} 3. c4 {[%clk 0:02:58.9]} 3... e6 {[%clk 0:02:47.4]}
4. g3 {[%clk 0:02:56.5]} 4... dxc4 {[%clk 0:02:45.4]} 5. Qa4+ {[%clk 0:02:55.7]}
5... Nc6 {[%clk 0:02:38.9]} 6. Qxc4 {[%clk 0:02:55.6]} 6... Qd5 {[%clk
0:02:34.5]} 7. Qd3 {[%clk 0:02:53.7]} 7... Nb4 {[%clk 0:02:09.3]} 8. Qd1 {[%clk
0:02:29.7]} 8... Qf5 {[%clk 0:01:36.4]} 9. Na3 {[%clk 0:02:28.3]} 9... Nc6
{[%clk 0:01:25.1]} 10. Bg2 {[%clk 0:02:22.6]} 10... Bb4+ {[%clk 0:01:21.9]} 11.
Bd2 {[%clk 0:02:21.4]} 11... Bxa3 {[%clk 0:01:19.7]} 12. bxa3 {[%clk 0:02:20.1]}
12... O-O {[%clk 0:01:20]} 13. O-O {[%clk 0:02:15.3]} 13... Rd8 {[%clk
0:01:17.3]} 14. e3 {[%clk 0:02:15.2]} 14... e5 {[%clk 0:01:08]} 15. Nxe5 {[%clk
0:02:10.5]} 15... Nxe5 {[%clk 0:01:08.9]} 16. dxe5 {[%clk 0:02:10.5]} 16... Qxe5
{[%clk 0:01:09.8]} 17. Bc3 {[%clk 0:01:56.8]} 17... Qe7 {[%clk 0:00:44.2]} 18.
Qf3 {[%clk 0:01:55.2]} 18... c6 {[%clk 0:00:34.6]} 19. Bb4 {[%clk 0:01:41]}
19... Qe5 {[%clk 0:00:23.1]} 20. e4 {[%clk 0:01:26.4]} 20... Bg4 {[%clk
0:00:19]} 21. Qe3 {[%clk 0:01:24.6]} 21... h6 {[%clk 0:00:14.8]} 22. h3 {[%clk
0:01:19.4]} 22... Be6 {[%clk 0:00:10.2]} 23. Bc3 {[%clk 0:01:12.7]} 23... Qg5
{[%clk 0:00:07.4]} 24. Qe2 {[%clk 0:01:11.5]} 24... b5 {[%clk 0:00:04.3]} 25.
Rfd1 {[%clk 0:01:08]} 25... Bc4 {[%clk 0:00:04.4]} 26. Qb2 {[%clk 0:01:06.5]}
26... h5 {[%clk 0:00:03.6]} 27. h4 {[%clk 0:01:05.8]} 27... Qg4 {[%clk
0:00:02.8]} 28. Rd4 {[%clk 0:00:47.9]} 28... Rxd4 {[%clk 0:00:02.2]} 29. Bxd4
{[%clk 0:00:48.2]} 29... Qf5 {[%clk 0:00:02.7]} 30. exf5 {[%clk 0:00:48.1]} 1-0

[Event "Early-Titled-Tuesday-Blitz-April-02-2024"]
[Site "Chess.com"]
[Date "2024.04.02"]
[Round "6"]
[White "rachidhuilda"]
[Black "zurzan"]
[Result "0-1"]
[WhiteElo "2308"]
[BlackElo "2074"]
[TimeControl "180+1"]
[EndTime "9:05:54 PDT"]
[Termination "zurzan won by resignation"]

1. d4 {[%clk 0:02:59.1]} 1... Nf6 {[%clk 0:02:59]} 2. Nf3 {[%clk 0:02:58.5]}
2... g6 {[%clk 0:02:59.9]} 3. e3 {[%clk 0:02:54.9]} 3... Bg7 {[%clk 0:03:00.8]}
4. Be2 {[%clk 0:02:55.1]} 4... O-O {[%clk 0:02:59.6]} 5. O-O {[%clk 0:02:55.2]}
5... d5 {[%clk 0:02:59.8]} 6. b4 {[%clk 0:02:53.8]} 6... a5 {[%clk 0:02:58.6]}
7. b5 {[%clk 0:02:53.7]} 7... c6 {[%clk 0:02:58]} 8. bxc6 {[%clk 0:02:52.7]}
8... bxc6 {[%clk 0:02:58.4]} 9. c4 {[%clk 0:02:53]} 9... Na6 {[%clk 0:02:50.4]}
10. Nc3 {[%clk 0:02:52.3]} 10... c5 {[%clk 0:02:43]} 11. Nxd5 {[%clk 0:02:32]}
11... Nxd5 {[%clk 0:02:41.6]} 12. cxd5 {[%clk 0:02:32.9]} 12... cxd4 {[%clk
0:02:40.6]} 13. Nxd4 {[%clk 0:02:26.4]} 13... Bb7 {[%clk 0:02:34]} 14. e4 {[%clk
0:02:22.9]} 14... Rc8 {[%clk 0:02:22.5]} 15. Be3 {[%clk 0:02:20.3]} 15... Nc5
{[%clk 0:02:20.6]} 16. Rb1 {[%clk 0:02:10.8]} 16... Ba8 {[%clk 0:02:16.8]} 17.
f3 {[%clk 0:02:10.1]} 17... f5 {[%clk 0:02:01.6]} 18. Nc6 {[%clk 0:01:58]} 18...
Bxc6 {[%clk 0:01:59.4]} 19. Bxc5 {[%clk 0:01:58]} 19... Bd7 {[%clk 0:01:49.4]}
20. Bb6 {[%clk 0:01:53.6]} 20... Qe8 {[%clk 0:01:49.1]} 21. Bxa5 {[%clk
0:01:51.1]} 21... fxe4 {[%clk 0:01:49.4]} 22. fxe4 {[%clk 0:01:51.1]} 22... Ba4
{[%clk 0:01:44.4]} 23. Rxf8+ {[%clk 0:01:26]} 23... Bxf8 {[%clk 0:01:43.8]} 24.
Qf1 {[%clk 0:01:19.4]} 24... Bc2 {[%clk 0:01:38.5]} 25. Re1 {[%clk 0:01:14.9]}
25... Bxe4 {[%clk 0:01:35.3]} 26. Bc4 {[%clk 0:01:14.8]} 26... Bf5 {[%clk
0:01:10.3]} 27. Bb3 {[%clk 0:01:01.9]} 27... Bg7 {[%clk 0:01:03.1]} 28. d6+
{[%clk 0:00:56.7]} 28... e6 {[%clk 0:01:03.3]} 29. Bc7 {[%clk 0:00:55.2]} 29...
Bd4+ {[%clk 0:00:58.1]} 30. Kh1 {[%clk 0:00:55]} 30... Qd7 {[%clk 0:00:54.3]}
31. Qf4 {[%clk 0:00:50.1]} 31... Bc5 {[%clk 0:00:49.3]} 32. g4 {[%clk
0:00:46.6]} 32... Qc6+ {[%clk 0:00:37.5]} 33. Re4 {[%clk 0:00:15.1]} 33... Bxe4+
{[%clk 0:00:37.4]} 0-1